[Event "33rd Croatian Junior League 2024"]
[Site "Novalja"]
[Date "2024.04.07"]
[Round "8.7"]
[White "Sagovac, Kristijan"]
[Black "Matosin, Jurica"]
[Result "1-0"]
[ECO "B44"]
[WhiteElo "2030"]
[BlackElo "1928"]
[Annotator "NA RC"]
[PlyCount "111"]
[EventDate "2024.03.28"]
[EventType "team-tourn"]
[EventCountry "CRO"]
[SourceTitle "playchess.com"]
[Source "ChessBase"]
[SourceQuality "1"]
[TimeControl "5400+30"]

1. e4 {[%emt 0:00:04]} c5 {[%emt 0:00:08]} 2. Nf3 {[%emt 0:00:25]} e6 {[%emt 0:00:08]} 3. d4 {[%emt 0:00:09]} cxd4 {[%emt 0:00:08]} 4. Nxd4 {[%emt 0:00:07]} Nc6 {[%emt 0:00:36]} 5. Nb5 {[%emt 0:03:04]} d6 {[%emt 0:03:09]} 6. Be2 {[%emt 0:01:37]} a6 {[%emt 0:00:54]} 7. N5c3 {[%emt 0:00:09]} Nf6 {[%emt 0:00:44]} 8. O-O {[%emt 0:01:17]} Be7 {[%emt 0:00:34]} 9. Be3 {[%emt 0:00:58]} O-O {[%emt 0:00:54]} 10. f4 {[%emt 0:01:05]} b5 {[%emt 0:01:26]} 11. a3 {[%emt 0:00:31]} Bb7 {[%emt 0:00:59]} 12. Nd2 {[%emt 0:01:05]} Rc8 {[%emt 0:05:04]} (12... d5 $15 13. exd5 exd5 (13... Nxd5 14. Nxd5 Qxd5 15. Bf3 $11)) 13. Bf3 {[%emt 0:12:39]} Na5 {[%emt 0:01:36]} 14. Bd4 {[%emt 0:05:37]} Nc4 {[%emt 0:07:41]} (14... Re8 $15 {is more appropriate.}) 15. Nxc4 {[%emt 0:01:08]} Rxc4 {[%emt 0:01:03]} 16. b3 {[%emt 0:01:32]} Rc8 {[%emt 0:00:39]} 17. Qe1 $17 {[%emt 0:02:54]} (17. e5 $15 {was preferrable.} Bxf3 18. Rxf3 dxe5 19. fxe5) 17... Nd7 {[%emt 0:08:35]} 18. e5 {[%emt 0:12:47]} d5 {[%emt 0:03:12]} 19. b4 {[%emt 0:03:24]} Nb8 {[%emt 0:12:24]} 20. Qf2 {[%emt 0:02:40]} Qd7 {[%emt 0:03:21]} 21. Nd1 {[%emt 0:04:51]} Nc6 {[%emt 0:00:54]} 22. Bb6 {[%emt 0:02:41]} Bd8 {[%emt 0:03:10]} 23. Bc5 {[%emt 0:00:06]} Be7 {[%emt 0:00:05]} 24. Bb6 {[%emt 0:00:03]} Bd8 {[%emt 0:00:06]} 25. Nb2 {[%emt 0:03:34]} Bxb6 {[%emt 0:00:46]} 26. Qxb6 {[%emt 0:00:08]} Ne7 {[%emt 0:01:43]} 27. Nd3 {[%emt 0:01:09]} Qc6 {[%emt 0:01:00]} 28. Qc5 {[%emt 0:38:46]} Qe8 {[%emt 0:05:23]} 29. Qf2 {[%emt 0:00:00]} Bc6 {[%emt 0:01:03]} 30. Nc5 {[%emt 0:00:00]} Ra8 {[%emt 0:00:32]} 31. Be2 {[%emt 0:00:00]} Nf5 {[%emt 0:01:00]} 32. Bd3 {[%emt 0:00:00]} Nh6 {[%emt 0:04:55]} 33. c3 {[%emt 0:00:00]} g6 {[%emt 0:02:49]} 34. Bc2 {[%emt 0:00:00]} Qe7 {[%emt 0:05:04]} 35. h3 {[%emt 0:00:00]} Rfd8 {[%emt 0:00:49]} 36. g4 {[%emt 0:00:00]} Kh8 {[%emt 0:00:29]} 37. Kh2 {[%emt 0:00:00]} a5 {[%emt 0:02:32]} 38. Bd3 {[%emt 0:00:00]} axb4 {[%emt 0:00:59]} 39. axb4 {[%emt 0:00:00]} Rg8 {[%emt 0:00:41]} 40. Nb3 {[%emt 0:00:00]} g5 {[%emt 0:01:47]} 41. Rxa8 {[%emt 0:00:00]} Bxa8 {[%emt 0:00:28]} 42. fxg5 {[%emt 0:00:00]} Qxg5 {[%emt 0:02:17]} 43. Qf6+ {[%emt 0:00:00]} Qxf6 {[%emt 0:00:10]} 44. Rxf6 {[%emt 0:00:00]} Kg7 {[%emt 0:00:13]} 45. Bxb5 {[%emt 0:00:00]} Rb8 {[%emt 0:00:17]} 46. Bd3 {[%emt 0:00:00]} Ng8 {[%emt 0:00:09]} 47. Rf1 {[%emt 0:00:00]} Ne7 {[%emt 0:00:07]} 48. Kg3 {[%emt 0:00:00]} Nc6 {[%emt 0:00:15]} 49. Re1 {[%emt 0:00:00]} Rc8 {[%emt 0:00:33]} 50. Nc5 {[%emt 0:00:00]} d4 {[%emt 0:00:13]} 51. b5 {[%emt 0:00:00]} Nxe5 {[%emt 0:01:59]} 52. Rxe5 {[%emt 0:00:29]} dxc3 {[%emt 0:00:16]} 53. Bc2 {[%emt 0:04:01]} Bd5 {[%emt 0:01:03]} 54. Nd7 {[%emt 0:00:53]} f6 {[%emt 0:00:50]} 55. Rxd5 {[%emt 0:02:32]} exd5 {[%emt 0:00:11]} 56. b6 {[%emt 0:00:03]} 1-0

[Event "33rd Croatian Junior League 2024"]
[Site "Novalja"]
[Date "2024.04.07"]
[Round "8.8"]
[White "Sosic, Zvan"]
[Black "Martic, Filip"]
[Result "1-0"]
[ECO "B27"]
[WhiteElo "1868"]
[BlackElo "1897"]
[Annotator "NA RC"]
[PlyCount "109"]
[EventDate "2024.03.28"]
[EventType "team-tourn"]
[EventCountry "CRO"]
[SourceTitle "playchess.com"]
[Source "ChessBase"]
[SourceQuality "1"]
[TimeControl "5400+30"]

1. e4 {[%emt 0:00:01]} c5 {[%emt 0:00:08]} 2. Nf3 {[%emt 0:00:06]} g6 {[%emt 0:00:10]} 3. d4 {[%emt 0:00:05]} cxd4 {[%emt 0:00:04]} 4. Qxd4 {[%emt 0:00:05]} Nf6 {[%emt 0:00:05]} 5. e5 {[%emt 0:00:05]} Nc6 {[%emt 0:00:05]} 6. Qa4 {[%emt 0:00:05]} Nd5 {[%emt 0:00:04]} 7. Qe4 {[%emt 0:00:06]} Nb6 {[%emt 0:00:04]} 8. Nc3 {[%emt 0:00:12]} d5 {[%emt 0:01:04]} 9. exd6 {[%emt 0:00:05]} Bf5 {[%emt 0:00:07]} 10. dxe7 {[%emt 0:00:54]} Bxe7 {[%emt 0:00:05]} 11. Qe3 {[%emt 0:05:14]} Nb4 {[%emt 0:00:50]} 12. Bb5+ {[%emt 0:00:20]} Nd7 {[%emt 0:00:51]} 13. Ba4 {[%emt 0:11:53]} O-O {[%emt 0:00:14]} 14. O-O {[%emt 0:03:19]} Bxc2 {[%emt 0:02:05]} 15. a3 {[%emt 0:01:47]} Bxa4 {[%emt 0:00:07]} 16. axb4 {[%emt 0:00:05]} Bc6 {[%emt 0:00:20]} 17. b5 {[%emt 0:00:31]} Bc5 {[%emt 0:00:20]} 18. Qf4 {[%emt 0:00:22]} Bxf3 {[%emt 0:00:46]} 19. Qxf3 {[%emt 0:00:01]} Ne5 {[%emt 0:01:07]} 20. Qxb7 {[%emt 0:00:53]} Nd3 $16 {[%emt 0:03:26]} 21. Ne4 {[%emt 0:08:00]} Nxc1 {[%emt 0:01:27]} 22. Raxc1 {[%emt 0:01:13]} Bb6 {[%emt 0:00:27]} 23. Rfd1 {[%emt 0:02:24]} Qh4 {[%emt 0:00:18]} 24. g3 {[%emt 0:00:25]} Qh3 {[%emt 0:02:59]} 25. Nf6+ {[%emt 0:01:51]} Kg7 {[%emt 0:00:05]} 26. Nd7 {[%emt 0:00:16]} Rfe8 {[%emt 0:00:55]} 27. Nxb6 {[%emt 0:02:05]} axb6 {[%emt 0:00:05]} 28. Rd7 {[%emt 0:00:23]} Qf5 {[%emt 0:00:26]} 29. Rxf7+ {[%emt 0:04:31]} Qxf7 {[%emt 0:00:05]} 30. Rc7 {[%emt 0:00:07]} Ra1+ {[%emt 0:00:17]} 31. Kg2 {[%emt 0:00:06]} Rf8 {[%emt 0:00:06]} 32. Qxb6 {[%emt 0:00:46]} Rb1 {[%emt 0:01:18]} 33. h4 {[%emt 0:00:58]} Kg8 {[%emt 0:00:47]} 34. Rxf7 {[%emt 0:00:09]} Rxf7 {[%emt 0:00:04]} 35. Qd8+ {[%emt 0:00:14]} Kg7 {[%emt 0:00:21]} 36. b6 {[%emt 0:00:11]} Re1 {[%emt 0:00:46]} 37. Qd4+ {[%emt 0:00:56]} Kg8 {[%emt 0:01:03]} 38. Qc4 {[%emt 0:06:27]} Ree7 {[%emt 0:00:08]} 39. g4 {[%emt 0:00:36]} Rb7 {[%emt 0:00:06]} 40. Qd5 {[%emt 0:00:26]} Rbd7 {[%emt 0:00:22]} 41. Qc5 {[%emt 0:00:51]} Rb7 {[%emt 0:00:47]} 42. Kg3 {[%emt 0:00:44]} Kg7 {[%emt 0:00:18]} 43. Qd4+ {[%emt 0:00:26]} Kg8 {[%emt 0:00:10]} 44. f4 {[%emt 0:00:47]} Rbd7 {[%emt 0:00:17]} 45. Qc4 {[%emt 0:00:50]} Kg7 {[%emt 0:00:23]} 46. g5 {[%emt 0:00:20]} Rfe7 {[%emt 0:00:50]} 47. Qc3+ {[%emt 0:00:15]} Kg8 {[%emt 0:00:05]} 48. Kg4 {[%emt 0:00:19]} Rf7 {[%emt 0:00:08]} 49. h5 {[%emt 0:01:26]} gxh5+ {[%emt 0:00:32]} 50. Kxh5 {[%emt 0:00:02]} Rb7 {[%emt 0:00:30]} 51. Qc8+ {[%emt 0:00:26]} Kg7 {[%emt 0:00:07]} 52. f5 {[%emt 0:00:34]} Rfd7 {[%emt 0:00:33]} 53. Qe8 {[%emt 0:00:48]} h6 {[%emt 0:01:04]} 54. f6+ {[%emt 0:00:27]} Kh7 {[%emt 0:00:03]} 55. g6# {[%emt 0:00:08]} 1-0

[Event "33rd Croatian Junior League 2024"]
[Site "Novalja"]
[Date "2024.04.07"]
[Round "8.9"]
[White "Boric, Jakov"]
[Black "Novosel, Lovro"]
[Result "1-0"]
[ECO "D61"]
[WhiteElo "1969"]
[BlackElo "2348"]
[Annotator "RC"]
[PlyCount "87"]
[EventDate "2024.03.28"]
[EventType "team-tourn"]
[EventCountry "CRO"]
[SourceTitle "playchess.com"]
[Source "ChessBase"]
[SourceQuality "1"]
[TimeControl "5400+30"]

1. d4 {[%emt 0:00:08]} d5 {[%emt 0:00:31]} 2. c4 {[%emt 0:00:07]} e6 {[%emt 0:00:43]} 3. Nc3 {[%emt 0:00:10]} Nf6 {[%emt 0:00:07]} 4. Bg5 {[%emt 0:00:10]} Nbd7 {[%emt 0:01:18]} 5. e3 {[%emt 0:00:25]} c6 {[%emt 0:00:23]} 6. Qc2 {[%emt 0:00:58]} Be7 {[%emt 0:03:08]} 7. Nf3 {[%emt 0:01:09]} O-O {[%emt 0:00:31]} 8. Rd1 {[%emt 0:00:25]} h6 {[%emt 0:03:23]} 9. Bh4 {[%emt 0:00:22]} a6 {[%emt 0:00:39]} 10. a3 {[%emt 0:00:11]} b5 {[%emt 0:08:45]} 11. c5 {[%emt 0:00:20]} a5 {[%emt 0:00:41]} 12. b4 {[%emt 0:05:40]} Re8 {[%emt 0:00:59]} 13. Be2 {[%emt 0:05:41]} Qc7 {[%emt 0:10:00]} 14. O-O {[%emt 0:03:59]} Qa7 {[%emt 0:04:44]} 15. h3 {[%emt 0:05:20]} Bd8 {[%emt 0:11:59]} 16. Bg3 {[%emt 0:07:24]} Bc7 {[%emt 0:00:26]} 17. Ne5 {[%emt 0:01:47]} Nxe5 {[%emt 0:02:49]} 18. dxe5 {[%emt 0:03:03]} Nd7 {[%emt 0:00:09]} 19. f4 {[%emt 0:00:22]} Bd8 {[%emt 0:14:24]} 20. Bh5 {[%emt 0:13:17]} Rf8 {[%emt 0:02:13]} 21. Ne2 {[%emt 0:05:43]} Nb8 {[%emt 0:10:15]} 22. Nd4 {[%emt 0:02:44]} Bd7 {[%emt 0:01:56]} 23. f5 {[%emt 0:10:38]} exf5 {[%emt 0:00:30]} 24. Nxf5 {[%emt 0:00:15]} axb4 {[%emt 0:00:19]} 25. Nxh6+ {[%emt 0:13:35]} gxh6 {[%emt 0:00:57]} 26. Rxf7 {[%emt 0:02:00]} Rxf7 {[%emt 0:00:16]} 27. Bxf7+ {[%emt 0:00:06]} Kf8 {[%emt 0:00:03]} 28. Qg6 {[%emt 0:00:48]} Bg5 {[%emt 0:00:38]} 29. Qg8+ {[%emt 0:01:22]} Ke7 {[%emt 0:00:03]} 30. e6 {[%emt 0:00:16]} Qxc5 {[%emt 0:00:46]} 31. exd7 {[%emt 0:01:53]} Nxd7 {[%emt 0:00:34]} 32. Qxa8 {[%emt 0:00:22]} Kxf7 {[%emt 0:00:07]} 33. Rf1+ {[%emt 0:01:09]} Bf6 {[%emt 0:02:45]} 34. axb4 {[%emt 0:01:18]} Qxe3+ {[%emt 0:01:30]} 35. Kh2 {[%emt 0:01:30]} Qe6 {[%emt 0:00:01]} 36. Re1 {[%emt 0:04:29]} Be5 {[%emt 0:00:17]} 37. Bxe5 {[%emt 0:00:17]} Nxe5 {[%emt 0:00:07]} 38. Qa7+ {[%emt 0:01:08]} Kf6 {[%emt 0:04:37]} 39. Qe3 {[%emt 0:01:48]} h5 {[%emt 0:00:14]} 40. Qf4+ {[%emt 0:01:50]} Qf5 {[%emt 0:00:06]} 41. Qh6+ {[%emt 0:01:38]} Qg6 {[%emt 0:04:48]} 42. Qf8+ {[%emt 0:00:26]} Nf7 {[%emt 0:01:45]} 43. Rf1+ {[%emt 0:00:32]} Ke6 {[%emt 0:00:02]} 44. Qe8+ {[%emt 0:00:15]} 1-0

[Event "33rd Croatian Junior League 2024"]
[Site "Novalja"]
[Date "2024.04.07"]
[Round "8.10"]
[White "Karlusic, Luka"]
[Black "Mimica, Matija"]
[Result "1-0"]
[ECO "E73"]
[WhiteElo "2232"]
[BlackElo "1894"]
[Annotator "RC"]
[PlyCount "61"]
[EventDate "2024.03.28"]
[EventType "team-tourn"]
[EventCountry "CRO"]
[SourceTitle "playchess.com"]
[Source "ChessBase"]
[SourceQuality "1"]
[TimeControl "5400+30"]

1. d4 {[%emt 0:00:06]} Nf6 {[%emt 0:00:12]} 2. c4 {[%emt 0:00:30]} g6 {[%emt 0:00:06]} 3. Nc3 {[%emt 0:00:04]} Bg7 {[%emt 0:00:04]} 4. e4 {[%emt 0:00:06]} d6 {[%emt 0:00:04]} 5. Be2 {[%emt 0:00:04]} O-O {[%emt 0:00:07]} 6. Be3 {[%emt 0:00:03]} e5 {[%emt 0:00:26]} 7. d5 {[%emt 0:00:04]} Nbd7 {[%emt 0:01:22]} 8. g4 {[%emt 0:02:24]} Nc5 {[%emt 0:07:38]} 9. Bf3 {[%emt 0:00:34]} a5 {[%emt 0:03:35]} 10. h4 {[%emt 0:00:07]} Bd7 {[%emt 0:00:53]} 11. h5 {[%emt 0:02:54]} c6 {[%emt 0:01:23]} 12. g5 {[%emt 0:07:29]} Ne8 {[%emt 0:00:20]} 13. Qd2 {[%emt 0:02:20]} cxd5 {[%emt 0:02:41]} 14. Nxd5 {[%emt 0:02:13]} Bc6 {[%emt 0:11:35]} 15. O-O-O {[%emt 0:11:48]} Bxd5 {[%emt 0:00:25]} 16. Qxd5 {[%emt 0:01:46]} Ne6 {[%emt 0:02:41]} 17. hxg6 {[%emt 0:08:07]} hxg6 {[%emt 0:02:05]} 18. Ne2 {[%emt 0:08:59]} Rc8 {[%emt 0:05:43]} 19. Bg4 {[%emt 0:03:59]} Qe7 {[%emt 0:08:52]} 20. Kb1 {[%emt 0:03:28]} Rc6 {[%emt 0:00:52]} 21. Bxe6 {[%emt 0:04:34]} Qxe6 {[%emt 0:02:04]} 22. Qxe6 {[%emt 0:03:57]} fxe6 {[%emt 0:00:05]} 23. b3 {[%emt 0:00:58]} Nc7 {[%emt 0:02:27]} 24. Nc3 {[%emt 0:01:40]} Rd8 {[%emt 0:29:14]} 25. Rd2 {[%emt 0:01:08]} Kf7 {[%emt 0:03:45]} 26. Rhd1 {[%emt 0:00:18]} Ke7 {[%emt 0:01:03]} 27. Nb5 {[%emt 0:06:02]} Rd7 {[%emt 0:11:18]} 28. Na7 {[%emt 0:00:34]} Ra6 {[%emt 0:01:03]} 29. Nc8+ {[%emt 0:00:09]} Kd8 {[%emt 0:00:08]} 30. Nxd6 {[%emt 0:00:08]} Nd5 {[%emt 0:02:13]} 31. Nb5 {[%emt 0:00:17]} 1-0

[Event "33rd Croatian Junior League 2024"]
[Site "Novalja"]
[Date "2024.04.07"]
[Round "8.12"]
[White "Simunkovic, Bartol"]
[Black "Volic, Duje"]
[Result "0-1"]
[ECO "B86"]
[WhiteElo "1885"]
[BlackElo "1842"]
[Annotator "NA RC"]
[PlyCount "60"]
[EventDate "2024.03.28"]
[EventType "team-tourn"]
[EventCountry "CRO"]
[SourceTitle "playchess.com"]
[Source "ChessBase"]
[SourceQuality "1"]
[TimeControl "5400+30"]

1. e4 {[%emt 0:00:08]} c5 {[%emt 0:00:05]} 2. Nf3 {[%emt 0:00:05]} d6 {[%emt 0:00:05]} 3. d4 {[%emt 0:00:06]} cxd4 {[%emt 0:00:03]} 4. Nxd4 {[%emt 0:00:05]} Nf6 {[%emt 0:00:03]} 5. Nc3 {[%emt 0:00:08]} a6 {[%emt 0:00:07]} 6. Bc4 {[%emt 0:00:31]} e6 {[%emt 0:00:07]} 7. Bb3 {[%emt 0:00:09]} Be7 {[%emt 0:00:06]} 8. O-O {[%emt 0:00:07]} O-O {[%emt 0:00:03]} 9. f4 {[%emt 0:00:11]} Nbd7 {[%emt 0:00:40]} 10. f5 {[%emt 0:00:22]} Nc5 {[%emt 0:00:13]} 11. Qe2 {[%emt 0:02:27]} Nxb3 {[%emt 0:02:01]} 12. axb3 {[%emt 0:00:51]} Bd7 {[%emt 0:00:16]} 13. Qd3 {[%emt 0:01:44]} Ng4 {[%emt 0:01:05]} 14. h3 {[%emt 0:06:14]} Ne5 {[%emt 0:01:02]} 15. Qd1 {[%emt 0:01:36]} Rc8 {[%emt 0:03:01]} 16. Be3 {[%emt 0:01:32]} Qc7 {[%emt 0:00:51]} 17. Qd2 {[%emt 0:01:02]} Kh8 {[%emt 0:06:02]} 18. g4 {[%emt 0:02:44]} Qd8 $11 {[%emt 0:03:30]} 19. Kh1 {[%emt 0:04:14]} g6 {[%emt 0:05:15]} 20. Qf2 {[%emt 0:02:12]} gxf5 {[%emt 0:01:46]} 21. gxf5 {[%emt 0:00:41]} Bh4 {[%emt 0:01:11]} 22. Qf4 {[%emt 0:01:54]} Rg8 {[%emt 0:00:42]} 23. Rg1 {[%emt 0:00:15]} Qf6 {[%emt 0:01:13]} 24. Raf1 {[%emt 0:02:23]} Rxg1+ {[%emt 0:00:09]} 25. Bxg1 {[%emt 0:02:24]} Bg5 {[%emt 0:01:12]} 26. Qh2 {[%emt 0:01:37]} Rg8 {[%emt 0:01:55]} 27. Qe2 {[%emt 0:04:48]} Qh6 {[%emt 0:00:24]} 28. Qh2 {[%emt 0:01:45]} Bc1 {[%emt 0:04:03]} 29. Nf3 {[%emt 0:04:46]} Bf4 {[%emt 0:01:18]} 30. Nxe5 {[%emt 0:01:46]} Bxe5 {[%emt 0:00:39]} 0-1